[Event "Israel National League 2024"]
[Site "Israel"]
[Date "2024.02.09"]
[Round "5.16"]
[White "Globus, Or"]
[Black "Karp, Ilya"]
[Result "1/2-1/2"]
[ECO "E68"]
[WhiteElo "2434"]
[BlackElo "2382"]
[Annotator "TA"]
[PlyCount "57"]
[EventDate "2024.01.07"]
[EventType "team-tourn"]
[EventCountry "ISR"]
[SourceTitle "playchess.com"]
[Source "ChessBase"]
[SourceQuality "1"]
[TimeControl "40/5400+30:1800+30"]

{[%evp 21,57,13,29,18,83,79,102,50,78,85,87,99,72,78,77,-33,12,20,22,22,20,19,18,6,0,0,0,0,0,0,0,0,0,0,0,0,0,0]} 1. d4 {[%emt 0:00:41]} Nf6 {[%emt 0:03:09]} 2. c4 {[%emt 0:00:23]} g6 {[%emt 0:00:08]} 3. g3 {[%emt 0:00:25]} Bg7 {[%emt 0:00:23]} 4. Bg2 {[%emt 0:00:07]} d6 {[%emt 0:00:14]} 5. Nc3 {[%emt 0:01:00]} O-O {[%emt 0:00:08]} 6. Nf3 {[%emt 0:00:05]} Nbd7 {[%emt 0:00:04]} 7. O-O {[%emt 0:00:48]} e5 {[%emt 0:00:03]} 8. e4 {[%emt 0:02:10]} exd4 {[%emt 0:02:14]} 9. Nxd4 {[%emt 0:06:42]} Re8 {[%emt 0:00:19]} 10. h3 {[%emt 0:01:37]} Nc5 {[%emt 0:00:14]} 11. Re1 {[%emt 0:00:30]} h6 {[%emt 0:00:06]} 12. Kh2 {[%emt 0:08:52]} Ne6 {[%emt 0:14:48]} (12... a5 $11) 13. Be3 $16 {[%emt 0:08:38] White is much more active.} Nd7 {[%emt 0:02:15]} 14. Qd2 {[%emt 0:19:54]} (14. Nxe6 $16 Rxe6 15. Rc1) 14... Nxd4 {[%emt 0:23:24]} 15. Bxd4 {[%emt 0:00:06]} Ne5 {[%emt 0:00:10]} 16. b3 {[%emt 0:04:22]} c5 {[%emt 0:05:22]} 17. Be3 {[%emt 0:06:41][%cal Oc3b5]} Qf6 {[%emt 0:10:39]} 18. Bxh6 {[%emt 0:23:13]} (18. Qe2 $16) 18... Bxh3 {[%emt 0:23:27]} 19. Nd5 {[%emt 0:04:09] The position is equal.} Nf3+ {[%emt 0:05:07]} 20. Bxf3 $1 {[%emt 0:00:47]} Qxf3 {[%emt 0:00:06][%csl Gh3][%cal Rf3g2] [#]} 21. Kxh3 {[%emt 0:00:46] Strongly threatening Bxg7.} Bxa1 {[%emt 0:05:36]} 22. Rxa1 {[%emt 0:02:07] Qf4 is the strong threat.} Re5 $1 {[%emt 0:00:04]} 23. Bg5 {[%emt 0:01:32]} Rxg5 $1 {[%emt 0:01:36]} 24. Qxg5 {[%emt 0:01:12]} Kg7 $1 {[%emt 0:00:01] [#] ( -> ...Rh8+)} 25. Qf6+ $1 {[%emt 0:01:33]} Qxf6 {[%emt 0:00:01]} 26. Nxf6 {[%emt 0:00:04]} Kxf6 {[%emt 0:00:03]} 27. Rd1 {[%emt 0:00:08]} Ke6 {[%emt 0:01:31]} 28. Kg2 {[%emt 0:01:23]} a6 {[%emt 0:00:25]} 29. Rd5 {[%emt 0:02:55] Weighted Error Value: White=0.20 (precise) /Black=0.13 (very precise) .  Mistake:       	White=2     	Black=1      Inaccurate:     	---       	Black=2      OK:         	White=4     	Black=4      Best:        	White=2     	Black=3      Strong:       	White=2     	Black=3} 1/2-1/2

[Event "Israel National League 2024"]
[Site "Israel"]
[Date "2024.02.09"]
[Round "5.17"]
[White "Mordechai, Hanan"]
[Black "Alekseev, Evgeny"]
[Result "0-1"]
[ECO "B46"]
[WhiteElo "2347"]
[BlackElo "2563"]
[Annotator "TA"]
[PlyCount "66"]
[EventDate "2024.01.07"]
[EventType "team-tourn"]
[EventCountry "ISR"]
[SourceTitle "playchess.com"]
[Source "ChessBase"]
[SourceQuality "1"]
[TimeControl "40/5400+30:1800+30"]

{[%evp 18,66,0,0,8,0,11,9,16,7,10,4,8,7,11,13,8,10,31,45,40,17,93,98,232,0,168,-63,-90,-458,-101,-247,-252,-246,-241,-237,0,-704,-654,-711,-693,-658,-694,-785,-731,-735,-670,-945,-839,-949,-920]} 1. e4 {[%emt 0:01:23]} c5 {[%emt 0:00:18]} 2. Nf3 {[%emt 0:00:06]} e6 {[%emt 0:00:28]} 3. d4 {[%emt 0:00:07]} cxd4 {[%emt 0:00:14]} 4. Nxd4 {[%emt 0:00:02]} Nc6 {[%emt 0:00:15]} 5. Nc3 {[%emt 0:00:15]} a6 {[%emt 0:00:26]} 6. f4 {[%emt 0:00:41]} Qc7 {[%emt 0:06:35]} 7. Nxc6 {[%emt 0:00:26]} bxc6 {[%emt 0:07:18]} 8. Bd3 {[%emt 0:00:46]} d5 {[%emt 0:07:28]} 9. Qe2 {[%emt 0:03:21]} Nf6 {[%emt 0:09:19]} 10. O-O {[%emt 0:01:34]} Be7 {[%emt 0:04:57]} 11. Bd2 {[%emt 0:00:54]} O-O {[%emt 0:08:11]} 12. Rae1 {[%emt 0:01:01]} Re8 {[%emt 0:06:30] The position is equal.} 13. Kh1 {[%emt 0:04:46]} Bf8 {[%emt 0:05:07]} 14. e5 {[%emt 0:17:17]} Nd7 {[%emt 0:01:37]} 15. Na4 {[%emt 0:00:19]} a5 {[%emt 0:07:36]} 16. Be3 {[%emt 0:10:54]} c5 {[%emt 0:03:54] White must now prevent ...c4.} 17. c4 {[%emt 0:00:18]} Bb7 {[%emt 0:13:46]} 18. cxd5 {[%emt 0:21:08]} exd5 {[%emt 0:00:13]} 19. b3 {[%emt 0:00:26]} Bc6 {[%emt 0:09:12]} (19... Nb6 $11) 20. Qc2 $16 {[%emt 0:16:02][%csl LRc5,LRh7]} d4 {[%emt 0:01:27]} (20... g6 $16 {was necessary.}) 21. Bxh7+ $18 {[%emt 0:07:10]} Kh8 {[%emt 0:00:03][%cal Og7g6] [#]} 22. Bd2 $2 {[%emt 0:00:06]} (22. Qf5 $1 $18 {[%cal Rf5h5] aiming for Qh5!} Re6 (22... dxe3 $2 23. Qh5 $18) 23. Qxf7 Bxg2+ 24. Kg1 (24. Kxg2 Qc6+ 25. Kf2 Kxh7 $16) 24... Kxh7 25. Qxe6 Bxf1 26. Kxf1) 22... g6 $15 {[%emt 0:00:57]} 23. f5 $2 {[%emt 0:03:08][%mdl 8192]} Kxh7 $2 {[%emt 0:02:01]} (23... Nxe5 $19 {( -> ...Ng4)} 24. Bf4 (24. fxg6 {is a self mate.} Ng4 25. Rf4 Qxf4 26. g7+ Bxg7 27. Rxe8+ Rxe8 28. Kg1 Qxh2+ 29. Kf1 Bxg2#) 24... Kxh7) 24. fxg6+ {[%emt 0:01:20]} (24. e6 $17) 24... fxg6 $19 {[%emt 0:00:06]} 25. Rf7+ {[%emt 0:00:11]} Bg7 {[%emt 0:00:04]} 26. e6 {[%emt 0:02:49] [#]} Rf8 $2 {[%emt 0:02:03]} (26... Qd6 $1 $19 27. exd7 Rxe1+ 28. Bxe1 Bxa4 29. bxa4 Qe6) 27. Re7 {[%emt 0:02:44][%mdl 8192]} (27. Bf4 $11 Qb7 28. Qf2 Rxf7 29. Qh4+ Kg8 30. exf7+ Kxf7 31. Qe7+ Kg8 32. Qe6+ Kh7 33. Qh3+ Kg8 34. Qe6+ Kh7 35. Qh3+ Kg8 36. Qe6+) 27... Qd6 {[%emt 0:01:25] Black is clearly winning.} 28. Bg5 {[%emt 0:01:32] [#]} Rae8 $1 {[%emt 0:00:42]} 29. Rxe8 {[%emt 0:02:27]} Rxe8 {[%emt 0:00:06]} 30. Qd3 {[%emt 0:00:01]} Ne5 {[%emt 0:01:40]} (30... Rxe6 $2 {too greedy.} 31. Qh3+ Kg8 32. Qxe6+ (32. Rxe6 Qd5 $14) 32... Qxe6 33. Rxe6 Bxa4 34. bxa4 $18) 31. Qh3+ {[%emt 0:00:05]} Kg8 {[%emt 0:00:04]} 32. e7 {[%emt 0:00:10]} Bxa4 {[%emt 0:01:25]} 33. bxa4 {[%emt 0:00:09]} c4 {[%emt 0:00:07] Weighted Error Value: White=0.82/Black=0.67.  Loses game:     	White=2     	Black=1      Missed win:     	White=1     	Black=2      Mistake:       	White=1     	Black=2      OK:         	White=9     	Black=6      Best:        	White=3     	Black=1} 0-1

[Event "Israel National League 2024"]
[Site "Israel"]
[Date "2024.02.09"]
[Round "5.18"]
[White "Golod, Vitali"]
[Black "Uritsky, Yonathan"]
[Result "1-0"]
[ECO "A43"]
[WhiteElo "2498"]
[BlackElo "2097"]
[Annotator "RC"]
[PlyCount "73"]
[EventDate "2024.01.07"]
[EventType "team-tourn"]
[EventCountry "ISR"]
[SourceTitle "playchess.com"]
[Source "ChessBase"]
[SourceQuality "1"]
[TimeControl "40/5400+30:1800+30"]

1. d4 {[%emt 0:00:05]} Nf6 {[%emt 0:01:29]} 2. Nf3 {[%emt 0:00:25]} c5 {[%emt 0:01:46]} 3. d5 {[%emt 0:02:30]} b5 {[%emt 0:00:19]} 4. Bg5 {[%emt 0:00:27]} Qb6 {[%emt 0:05:35]} 5. Bxf6 {[%emt 0:02:10]} Qxf6 {[%emt 0:01:25]} 6. c3 {[%emt 0:02:13]} d6 {[%emt 0:07:21]} 7. e4 {[%emt 0:04:13]} a6 {[%emt 0:00:12]} 8. Nbd2 {[%emt 0:04:48]} g6 {[%emt 0:03:58]} 9. a4 {[%emt 0:06:41]} b4 {[%emt 0:05:31]} 10. Rc1 {[%emt 0:06:02]} Nd7 {[%emt 0:06:25]} 11. a5 {[%emt 0:03:36]} bxc3 {[%emt 0:05:01]} 12. bxc3 {[%emt 0:00:30]} Ne5 {[%emt 0:00:41]} 13. Nxe5 {[%emt 0:12:16]} Qxe5 {[%emt 0:00:10]} 14. Bd3 {[%emt 0:00:17]} Bh6 {[%emt 0:06:08]} 15. O-O {[%emt 0:01:53]} Bg4 {[%emt 0:10:07]} 16. f3 {[%emt 0:04:10]} Qf4 {[%emt 0:01:57]} 17. Rf2 {[%emt 0:03:48]} Bd7 {[%emt 0:02:11]} 18. Rb1 {[%emt 0:03:02]} Qf6 {[%emt 0:03:33]} 19. Nc4 {[%emt 0:04:20]} Qxc3 {[%emt 0:05:53]} 20. Nb6 {[%emt 0:02:06]} Rd8 {[%emt 0:04:00]} 21. Nxd7 {[%emt 0:01:57]} c4 {[%emt 0:11:10]} 22. Bf1 {[%emt 0:06:06]} Be3 {[%emt 0:01:45]} 23. Nb6 {[%emt 0:01:02]} Qxa5 {[%emt 0:00:15]} 24. Nxc4 {[%emt 0:00:52]} Bxf2+ {[%emt 0:00:07]} 25. Kxf2 {[%emt 0:00:06]} Qc5+ {[%emt 0:00:22]} 26. Ne3 {[%emt 0:01:20]} O-O {[%emt 0:01:23]} 27. Bxa6 {[%emt 0:01:44]} Ra8 {[%emt 0:00:32]} 28. Rc1 {[%emt 0:00:41]} Qb6 {[%emt 0:01:02]} 29. Rc6 {[%emt 0:04:43]} Qa5 {[%emt 0:00:25]} 30. Be2 {[%emt 0:01:06]} Rfc8 {[%emt 0:02:15]} 31. Qd4 {[%emt 0:02:27]} h5 {[%emt 0:04:06]} 32. f4 {[%emt 0:06:57]} Rc7 {[%emt 0:00:56]} 33. e5 {[%emt 0:01:13]} Rd8 {[%emt 0:01:12]} 34. Nc4 {[%emt 0:01:29]} Qa7 {[%emt 0:01:27]} 35. Qxa7 {[%emt 0:00:10]} Rxa7 {[%emt 0:00:01]} 36. exd6 {[%emt 0:00:19]} Kg7 {[%emt 0:04:15]} 37. Rc7 {[%emt 0:01:39]} 1-0

[Event "Israel National League 2024"]
[Site "Israel"]
[Date "2024.02.09"]
[Round "5.19"]
[White "Parkhov, Yair"]
[Black "Romanov, Evgeny"]
[Result "1/2-1/2"]
[ECO "D35"]
[WhiteElo "2495"]
[BlackElo "2578"]
[Annotator "TA"]
[PlyCount "158"]
[EventDate "2024.01.07"]
[EventType "team-tourn"]
[EventCountry "ISR"]
[SourceTitle "playchess.com"]
[Source "ChessBase"]
[SourceQuality "1"]
[TimeControl "40/5400+30:1800+30"]

{[%evp 84,158,-250,-377,-382,-394,-341,-394,-385,-363,-349,-452,-394,-501,-510,-541,-532,-576,-589,-573,-514,-596,-554,-557,-532,-673,-679,-675,-612,-660,-684,-677,-684,-684,-684,-669,-645,-661,-664,-709,-709,-709,-709,-709,-702,-702,-682,-702,-702,-853,-853,-992,-987,-809,-8,-8,-8,-8,-8,-8,-8,-8,-8,-8,-8,-8,-8,-8,-8,-8,-8,-8,-8,-8,-8,-8,-8]} 1. d4 {[%emt 0:00:02]} Nf6 {[%emt 0:00:43]} 2. c4 {[%emt 0:00:04]} e6 {[%emt 0:00:18]} 3. Nc3 {[%emt 0:00:20]} d5 {[%emt 0:00:21]} 4. cxd5 {[%emt 0:00:21]} exd5 {[%emt 0:00:14]} 5. Bg5 {[%emt 0:00:12]} Be7 {[%emt 0:01:25]} 6. e3 {[%emt 0:02:38]} O-O {[%emt 0:01:03]} 7. Bd3 {[%emt 0:01:21]} Re8 {[%emt 0:00:44]} 8. Nf3 {[%emt 0:06:20]} h6 {[%emt 0:02:23]} 9. Bh4 {[%emt 0:00:31]} c6 {[%emt 0:00:26]} 10. Bg3 {[%emt 0:02:52]} Nh5 {[%emt 0:05:23]} 11. Be5 {[%emt 0:00:17]} Nd7 {[%emt 0:00:47]} 12. h3 {[%emt 0:02:07]} Nxe5 {[%emt 0:02:34]} 13. dxe5 {[%emt 0:00:04]} g6 {[%emt 0:00:28]} 14. O-O {[%emt 0:00:25]} Ng7 {[%emt 0:03:10]} 15. Qd2 {[%emt 0:05:21]} Bf5 {[%emt 0:17:28]} 16. Rad1 {[%emt 0:13:17]} Bxd3 {[%emt 0:14:47]} 17. Qxd3 {[%emt 0:01:55]} Qb6 {[%emt 0:00:04]} 18. Nd4 {[%emt 0:06:15]} Rad8 {[%emt 0:05:40]} 19. e6 {[%emt 0:01:46]} f5 {[%emt 0:04:03]} 20. g4 {[%emt 0:03:08]} Bf6 {[%emt 0:03:19]} 21. gxf5 {[%emt 0:01:23]} Bxd4 {[%emt 0:00:44]} 22. exd4 {[%emt 0:00:17]} Nxf5 {[%emt 0:00:29]} 23. Rfe1 {[%emt 0:07:33]} Rd6 {[%emt 0:00:24]} 24. e7 {[%emt 0:05:36]} Rxe7 {[%emt 0:02:33]} 25. Rxe7 {[%emt 0:00:05]} Nxe7 {[%emt 0:00:05]} 26. Qe3 {[%emt 0:04:02]} Nf5 {[%emt 0:01:31]} 27. Qe8+ {[%emt 0:02:30]} Kg7 {[%emt 0:00:10]} 28. Qe5+ {[%emt 0:04:51]} Kf7 {[%emt 0:00:59]} 29. Qh8 {[%emt 0:04:22]} h5 {[%emt 0:04:41]} 30. Na4 {[%emt 0:06:26]} Qd8 {[%emt 0:01:28]} 31. Qxd8 {[%emt 0:01:18]} Rxd8 {[%emt 0:00:03]} 32. Nc5 {[%emt 0:00:06]} b6 {[%emt 0:01:14]} 33. Nb3 {[%emt 0:05:19]} Re8 {[%emt 0:01:55]} 34. Kf1 {[%emt 0:02:19]} Kf6 {[%emt 0:00:38]} 35. Rd3 {[%emt 0:00:46]} a5 {[%emt 0:08:41]} 36. Nd2 {[%emt 0:03:26]} Ke6 {[%emt 0:00:50]} 37. Rb3 {[%emt 0:03:36]} b5 {[%emt 0:04:16]} 38. Rd3 {[%emt 0:02:13]} Kd6 {[%emt 0:00:16]} 39. Nb3 {[%emt 0:01:25]} a4 {[%emt 0:01:58]} 40. Nc1 {[%emt 0:00:15]} Re4 {[%emt 0:04:27]} 41. Ne2 {[%emt 0:30:38]} b4 {[%emt 0:34:32]} 42. Ke1 {[%emt 0:00:00]} g5 {[%emt 0:00:00]} 43. a3 {[%emt 0:00:00]} (43. Kf1 {was worth a try.}) 43... b3 $19 {[%emt 0:00:00]} 44. Kd2 {[%emt 0:00:00]} g4 {[%emt 0:00:00]} 45. hxg4 {[%emt 0:00:00]} Rxg4 {[%emt 0:00:00]} 46. Kc3 {[%emt 0:00:00]} h4 {[%emt 0:00:00]} 47. Rh3 {[%emt 0:00:00]} Ke7 {[%emt 0:00:00]} ({Not} 47... Rg2 48. Rf3 Ng7 49. Kb4 $17) 48. Rh2 {[%emt 0:00:00]} Re4 {[%emt 0:00:00]} 49. Kd3 {[%emt 0:00:00]} Kf6 {[%emt 0:00:00]} 50. Rg2 {[%emt 0:00:00]} h3 {[%emt 0:00:00]} 51. Rh2 {[%emt 0:00:00]} Rh4 {[%emt 0:00:00]} 52. f3 {[%emt 0:00:00]} Kg5 {[%emt 0:00:00]} 53. Kc3 {[%emt 0:00:00]} Ne3 {[%emt 0:00:00]} 54. Kb4 {[%emt 0:01:54]} Nf1 {[%emt 0:00:16]} 55. Rh1 {[%emt 0:00:08]} Nd2 {[%emt 0:00:53]} 56. Kxa4 {[%emt 0:00:22]} h2 {[%emt 0:00:25]} 57. Kb4 {[%emt 0:01:57]} Nxf3 {[%emt 0:00:26]} 58. a4 {[%emt 0:01:37]} Rg4 {[%emt 0:07:15]} 59. a5 {[%emt 0:01:24]} Rg2 {[%emt 0:00:04]} 60. Nc1 {[%emt 0:00:37]} Rg1 {[%emt 0:00:58]} 61. Rxh2 {[%emt 0:00:05]} Nxh2 {[%emt 0:00:12]} 62. Nxb3 {[%emt 0:00:02]} Kf4 {[%emt 0:01:13]} 63. a6 {[%emt 0:00:20]} Rg8 {[%emt 0:00:35]} 64. Kc5 {[%emt 0:01:02]} Nf3 {[%emt 0:00:23]} 65. Kxc6 {[%emt 0:02:24]} Ke4 {[%emt 0:00:34]} 66. Kb7 {[%emt 0:01:48]} Nxd4 {[%emt 0:00:36]} 67. Nc5+ {[%emt 0:00:10] [#]} Ke5 $1 {[%emt 0:00:11]} 68. a7 {[%emt 0:00:21] [#]} Kd6 $2 {[%emt 0:01:32]} ({Black should play} 68... Ne6 $1 $19 {[%cal Re6c5]} 69. Na6 d4 (69... Nd8+ $2 70. Kb6 $18)) 69. b4 $11 {[%emt 0:01:34]} Nc6 {[%emt 0:01:10]} (69... Nb5 {simplifies} 70. a8=Q Rxa8 71. Kxa8 Kc7) 70. a8=Q {[%emt 0:00:06]} (70. a8=R {simplifies} Rxa8 71. Kxa8 Nxb4 72. Nb3) 70... Rxa8 {[%emt 0:00:10]} 71. Kxa8 {[%emt 0:00:30]} Nxb4 {[%emt 0:00:06]} 72. Nb3 {[%emt 0:00:00]} Kc6 {[%emt 0:00:51]} 73. Kb8 {[%emt 0:00:41]} Nc2 {[%emt 0:00:22]} 74. Kc8 {[%emt 0:00:24]} Kb5 {[%emt 0:00:15]} 75. Kd7 {[%emt 0:00:21]} Kc4 {[%emt 0:00:07]} (75... Kb4 $5 76. Kc6 Ne3 $11 (76... Kxb3 77. Kxd5 $11)) 76. Kd6 $1 {[%emt 0:00:12]} Ne3 {[%emt 0:00:15]} 77. Na5+ {[%emt 0:00:40]} Kc3 {[%emt 0:00:12]} 78. Nc6 {[%emt 0:00:35]} d4 {[%emt 0:00:08]} 79. Nxd4 $1 {[%emt 0:00:04]} Kxd4 {[%emt 0:00:33]} 1/2-1/2

[Event "Israel National League 2024"]
[Site "Israel"]
[Date "2024.02.09"]
[Round "5.20"]
[White "Greenfeld, Alon"]
[Black "Bitensky, Igor"]
[Result "1/2-1/2"]
[ECO "E62"]
[WhiteElo "2455"]
[BlackElo "2384"]
[Annotator "TA"]
[PlyCount "133"]
[EventDate "2024.01.07"]
[EventType "team-tourn"]
[EventCountry "ISR"]
[SourceTitle "playchess.com"]
[Source "ChessBase"]
[SourceQuality "1"]
[TimeControl "40/5400+30:1800+30"]

{[%evp 59,133,-156,-168,-159,-150,-157,-157,-157,-156,-156,-77,-80,-80,-86,-91,-95,-88,-88,-88,-89,-108,-119,-105,-118,-118,-118,-109,-78,-45,-45,-45,-45,-8,-8,-8,-8,-8,-8,-8,-8,-8,-8,-8,-8,-8,-8,-8,-8,-8,-8,-8,-8,0,0,0,0,0,0,0,0,0,0,0,0,0,0,0,-8,-8,-8,-8,-8,-8,-8,-8,-8]} 1. d4 {[%emt 0:01:44]} Nf6 {[%emt 0:00:03]} 2. Nf3 {[%emt 0:02:17]} g6 {[%emt 0:00:04]} 3. c4 {[%emt 0:00:59]} Bg7 {[%emt 0:00:06]} 4. g3 {[%emt 0:00:43]} d6 {[%emt 0:04:25]} 5. Nc3 {[%emt 0:03:37]} Bf5 {[%emt 0:05:08]} 6. Qb3 {[%emt 0:03:35] E62: King's Indian: Fianchetto: 6...c6 and Panno Variation (6...Nc6) without ...a6.} Qc8 {[%emt 0:01:10]} 7. Bg2 {[%emt 0:00:51]} Nc6 $1 {[%emt 0:01:05] The main line 7...Nc6 scores better than 7...c6.} 8. d5 {[%emt 0:02:16]} Nd8 {[%emt 0:00:04]} 9. O-O {[%emt 0:04:55]} Bh3 {[%emt 0:06:35]} 10. Qa4+ $146 {[%emt 0:11:42]} ({Predecessor:} 10. e4 Bxg2 11. Kxg2 O-O 12. Re1 Nd7 13. Bg5 e6 14. Rad1 a5 15. Qc2 Nc5 16. e5 {0-1 Muradli,M (2552)-Bortnyk,O (2604) Titled Tuesday intern op 09th Aug Late blitz 2022 (5)}) 10... Bd7 {[%emt 0:05:46]} 11. Qa3 {[%emt 0:09:45]} Bh3 {[%emt 0:18:50]} 12. Bxh3 {[%emt 0:17:50]} Qxh3 {[%emt 0:00:04]} 13. Qa4+ {[%emt 0:02:02]} c6 {[%emt 0:07:17]} 14. dxc6 {[%emt 0:15:01]} bxc6 {[%emt 0:02:08]} 15. Bg5 {[%emt 0:00:06]} O-O {[%emt 0:00:58]} 16. Rad1 {[%emt 0:00:21]} Qf5 {[%emt 0:10:25]} 17. Kg2 {[%emt 0:03:48]} h6 {[%emt 0:04:52]} 18. Bxf6 {[%emt 0:03:51]} Bxf6 {[%emt 0:04:51]} 19. Rd3 {[%emt 0:00:25]} a5 {[%emt 0:02:31]} 20. Rfd1 {[%emt 0:05:22]} Rb8 {[%emt 0:01:50]} 21. e4 {[%emt 0:01:03]} Qc5 {[%emt 0:03:49]} 22. e5 {[%emt 0:00:08]} dxe5 {[%emt 0:04:22]} 23. Ne4 {[%emt 0:02:30]} Qb4 {[%emt 0:00:02]} 24. Qxb4 {[%emt 0:02:41]} axb4 {[%emt 0:00:02]} 25. Nxf6+ {[%emt 0:01:45]} exf6 {[%emt 0:00:02]} 26. Rd6 {[%emt 0:00:08]} Kg7 {[%emt 0:01:48]} 27. Nd2 {[%emt 0:01:16]} Ne6 {[%emt 0:04:27]} 28. Nb3 {[%emt 0:00:05]} Rfc8 {[%emt 0:01:38]} 29. Rd7 {[%emt 0:01:38]} Ra8 {[%emt 0:02:26]} 30. Re7 {[%emt 0:00:58]} Rd8 {[%emt 0:02:50]} ({Inferior is} 30... Rxa2 31. Rdd7 Rxb2 32. Rxf7+ Kg8 33. Nc5 $11 (33. Rxf6 Nf8 $11)) 31. Rxd8 {[%emt 0:00:43]} Rxd8 {[%emt 0:00:36]} 32. Rb7 {[%emt 0:00:34]} c5 {[%emt 0:01:10]} 33. Rb5 {[%emt 0:01:02]} Ra8 {[%emt 0:01:43]} 34. Ra5 {[%emt 0:00:31]} Rc8 {[%emt 0:01:09]} ({Black should play} 34... Rxa5 35. Nxa5 Kf8) 35. a4 $17 {[%emt 0:00:44]} bxa3 {[%emt 0:00:41]} 36. bxa3 {[%emt 0:00:04]} Rb8 {[%emt 0:01:27]} 37. Nxc5 {[%emt 0:00:14]} Nxc5 {[%emt 0:00:11]} 38. Rxc5 {[%emt 0:00:05]} Ra8 {[%emt 0:00:03]} 39. g4 {[%emt 0:00:37]} Rxa3 {[%emt 0:00:12]} 40. f3 {[%emt 0:01:56]} Rc3 {[%emt 0:00:26]} 41. Kf2 {[%emt 0:02:34]} Rc2+ {[%emt 0:05:45]} 42. Kg3 {[%emt 0:01:30]} Re2 {[%emt 0:01:50]} 43. Rd5 {[%emt 0:09:08]} f5 {[%emt 0:02:11]} 44. gxf5 {[%emt 0:00:17]} gxf5 {[%emt 0:00:02]} 45. f4 {[%emt 0:00:37]} f6 {[%emt 0:00:31]} 46. c5 {[%emt 0:01:00]} Kg6 {[%emt 0:11:31]} 47. fxe5 {[%emt 0:05:04]} fxe5 {[%emt 0:00:21]} 48. c6 {[%emt 0:00:06]} Re3+ {[%emt 0:02:02]} (48... Rc2 {simplifies} 49. Rxe5 Rxc6 50. Kf4 Ra6) 49. Kf2 {[%emt 0:02:14]} Rc3 {[%emt 0:00:02]} 50. Rxe5 {[%emt 0:00:08]} Rxc6 {[%emt 0:00:02]} 51. Kg3 {[%emt 0:04:43]} Rc3+ {[%emt 0:00:22]} 52. Kf4 {[%emt 0:00:22]} Rc4+ {[%emt 0:00:01]} 53. Kg3 $1 {[%emt 0:00:11]} Kg5 {[%emt 0:00:01]} 54. h4+ {[%emt 0:00:46]} Kf6 {[%emt 0:00:02]} 55. Ra5 {[%emt 0:01:26]} h5 {[%emt 0:00:11]} 56. Ra6+ {[%emt 0:03:33]} Ke5 {[%emt 0:00:04]} 57. Rh6 {[%emt 0:01:03]} Rc3+ {[%emt 0:00:40]} 58. Kf2 {[%emt 0:00:37]} Ke4 {[%emt 0:00:55]} 59. Rxh5 {[%emt 0:00:05]} Rc2+ {[%emt 0:00:34]} 60. Kf1 {[%emt 0:00:53]} Rc3 {[%emt 0:04:04]} 61. Kf2 {[%emt 0:00:59]} Kf4 {[%emt 0:01:29]} 62. Rg5 {[%emt 0:01:21]} Rh3 {[%emt 0:00:44]} 63. Rg8 {[%emt 0:00:25]} Rxh4 {[%emt 0:00:38]} 64. Ra8 {[%emt 0:00:09]} Rh2+ {[%emt 0:00:04]} 65. Kf1 {[%emt 0:00:27]} Kg4 {[%emt 0:02:05]} 66. Ra4+ {[%emt 0:00:20]} f4 {[%emt 0:00:04]} 67. Ra3 {[%emt 0:00:03]} 1/2-1/2

[Event "Israel National League 2024"]
[Site "Israel"]
[Date "2024.02.09"]
[Round "5.21"]
[White "Gorodetzky, Matan"]
[Black "Dvoirys, Semen I."]
[Result "1/2-1/2"]
[ECO "D94"]
[WhiteElo "2325"]
[BlackElo "2466"]
[Annotator "TA"]
[PlyCount "69"]
[EventDate "2024.01.07"]
[EventType "team-tourn"]
[EventCountry "ISR"]
[SourceTitle "playchess.com"]
[Source "ChessBase"]
[SourceQuality "1"]
[TimeControl "40/5400+30:1800+30"]

{[%evp 21,69,0,0,0,18,8,16,12,17,0,0,0,0,0,39,48,62,33,41,37,59,45,42,45,104,30,23,27,25,0,0,0,0,0,0,0,0,0,0,0,0,0,0,-8,-8,-8,-8,-8,-8,-8]} 1. Nf3 {[%emt 0:00:17]} c5 {[%emt 0:00:08]} 2. e3 {[%emt 0:00:50]} Nf6 {[%emt 0:00:23]} 3. d4 {[%emt 0:00:30]} cxd4 {[%emt 0:02:38]} 4. exd4 {[%emt 0:00:54]} g6 {[%emt 0:00:05]} 5. c4 {[%emt 0:00:40]} Bg7 {[%emt 0:00:06]} 6. Nc3 {[%emt 1:30:19]} d5 {[%emt 0:06:29]} 7. cxd5 {[%emt 0:00:00]} Nxd5 {[%emt 0:00:17]} 8. Bc4 {[%emt 0:00:00]} Nb6 {[%emt 0:00:43]} 9. Bb3 {[%emt 0:00:00]} O-O {[%emt 0:02:39]} 10. O-O {[%emt 0:00:00]} Nc6 {[%emt 0:00:38]} 11. d5 {[%emt 0:00:00]} Na5 {[%emt 0:00:19]} 12. h3 {[%emt 0:00:00]} Bxc3 {[%emt 0:10:26]} 13. bxc3 {[%emt 0:00:00] Hoping for Bh6.} Nxb3 {[%emt 0:00:04]} 14. axb3 {[%emt 0:00:00] c4 is the strong threat.} Qxd5 {[%emt 0:00:04]} 15. c4 {[%emt 0:00:00]} Qxd1 {[%emt 0:00:41]} 16. Rxd1 {[%emt 0:00:00]} Bf5 {[%emt 0:07:01]} 17. Be3 {[%emt 0:00:00]} Rfc8 {[%emt 0:07:53] Black is weak on the dark squares} 18. Ra5 {[%emt 0:00:00]} Bc2 {[%emt 0:14:06]} 19. Rda1 {[%emt 0:00:00] aiming for Bxb6. White is more active.} Nd7 {[%emt 0:00:12]} 20. Nd4 {[%emt 0:00:00]} (20. Bxa7 Bxb3 21. Rb5 Bxc4 22. Rxb7 Nf6 $16) 20... Bd3 {[%emt 0:00:09]} 21. Rxa7 {[%emt 0:00:00]} (21. Rd1 $5 b6 22. Ra3 $16) 21... Rxa7 {[%emt 0:00:06]} 22. Rxa7 {[%emt 0:00:00]} Nc5 {[%emt 0:00:15]} (22... Rb8 $1 $14) 23. f3 {[%emt 0:00:00]} ({White should try} 23. b4 $16 Na6 24. b5 (24. Rxb7 Rb8 $16)) 23... Rd8 {[%emt 0:17:56]} 24. b4 {[%emt 0:00:00]} e5 $1 {[%emt 0:00:08]} 25. Bg5 {[%emt 0:00:00]} Rxd4 {[%emt 0:00:54] The position is equal.} 26. bxc5 $11 {[%emt 0:00:00][%mdl 4096] Endgame. KRB-KRB} Kg7 {[%emt 0:00:21] Repels Bf6+} 27. Rxb7 {[%emt 0:00:00]} Rxc4 {[%emt 0:01:49]} 28. Be3 {[%emt 0:00:00]} Rc2 {[%emt 0:01:54]} 29. Rd7 {[%emt 0:00:00]} Bc4 {[%emt 0:01:01]} 30. Rd6 {[%emt 0:00:00]} Be6 {[%emt 0:02:44]} 31. h4 {[%emt 0:00:00]} h5 {[%emt 0:00:33]} 32. Kh2 {[%emt 0:00:00]} Rc3 {[%emt 0:03:50]} 33. Bf2 {[%emt 0:00:00]} Kf6 {[%emt 0:00:43]} 34. Kg3 {[%emt 0:00:00]} Ke7 {[%emt 0:01:07]} 35. Kh2 {[%emt 0:00:00] Weighted Error Value: White=0.09 (flawless) /Black=0.06 (flawless) .  Mistake:       	White=1     	Black=1      Inaccurate:     	---       	Black=1      OK:         	White=7     	Black=14     Strong:       	---       	Black=1} 1/2-1/2